fUST/lending_fUST_20260602
["ID","MTS","AMOUNT","RATE_DAILY","PERIOD"]
[423749508,1780382131000,393.94380819,0.0002288,120]
[423749511,1780382132000,393.94380819,0.0002288,120]
[423749512,1780382132000,393.94380819,0.0002288,120]
[423749513,1780382132000,393.94380819,0.0002288,120]
[423749516,1780382133000,393.94380819,0.0002288,120]
[423749515,1780382133000,393.94380819,0.0002288,120]
[423749514,1780382133000,393.94380819,0.0002288,120]
[423749620,1780383032000,-3109.34792673,0.00011814,2]
[423749618,1780383032000,-1645.00179108,0.00011814,2]
[423749626,1780383032000,-300.0,0.00012298,2]
[423749628,1780383032000,-132.11507202,0.00012298,2]
[423749625,1780383032000,-245.65028219,0.00011814,2]
[423749632,1780383032000,-356.24162324,0.00012299,2]
[423749634,1780383032000,-61174.7326179,0.00012299,2]
[423749637,1780383032000,-1173.51518978,0.00012299,2]
[423749645,1780383032000,-608.10426702,0.00012299,2]
[423749630,1780383032000,-669.88492798,0.00012298,2]
[423749695,1780383038000,-3077.10347427,0.00012299,2]
[423749694,1780383038000,-749.91245089,0.00012299,2]
[423749696,1780383039000,-352.5144112,0.00012299,2]
[423749795,1780383040000,-4094.98504859,0.00012299,2]
[423749813,1780383041000,-3779.90698828,0.00012299,2]
[423749809,1780383041000,-458.9215886,0.00012299,2]
[423749899,1780383046000,-7055.40644442,0.00012299,2]
[423749900,1780383046000,-5173.0,0.00012299,2]
[423749902,1780383046000,-29606.72554336,0.00012299,2]
[423749903,1780383046000,-70000.0,0.00012299,2]
[423749901,1780383046000,-105738.02317892,0.00012299,2]
[423749951,1780383049000,-5000.0,0.00012176,2]
[423749953,1780383049000,-5964.48925162,0.00012299,2]
[423749955,1780383049000,-16412.08539171,0.00012299,2]
[423749967,1780383049000,-4588.39055034,0.00013102,2]
[423749965,1780383049000,-1070.72772645,0.00013102,2]
[423749961,1780383049000,-251.11704093,0.00013102,2]
[423749959,1780383049000,-50954.15728011,0.00013102,2]
[423749963,1780383049000,-8619.06727251,0.00013102,2]
[423749986,1780383049000,-34239.63314112,0.00013102,2]
[423749987,1780383049000,-152.0,0.00013112,7]
[423749989,1780383049000,-1415.0,0.00013203,2]
[423749991,1780383049000,-2206.0,0.00013203,2]
[423749984,1780383049000,-3717.18683286,0.00013102,2]
[423749957,1780383049000,-2633.7573282,0.00012352,2]
[423749977,1780383049000,-5043.8714538,0.00013102,2]
[423750009,1780383049000,-500.0,0.00013698,2]
[423749993,1780383049000,-3630.0,0.00013203,2]
[423750011,1780383049000,-500.0,0.00013698,2]
[423750007,1780383049000,-500.0,0.00013698,2]
[423750013,1780383049000,-500.0,0.00013698,2]
[423750005,1780383049000,-334.40401338,0.00013698,2]
[423750003,1780383049000,-1000.0,0.00013698,2]
[423749999,1780383049000,-1985.0199792,0.00013389,2]
[423749995,1780383049000,-1836.0,0.00013203,2]
[423749997,1780383049000,-152.0,0.00013211,7]
[423749981,1780383049000,-380.183,0.00013102,2]
[423749979,1780383049000,-8407.62300174,0.00013102,2]
[423750001,1780383049000,-420.0,0.00013497,2]
[423750090,1780383050000,-500.0,0.00013698,2]
[423750119,1780383050000,-500.0,0.00013698,2]
[423750096,1780383050000,-500.0,0.00013698,2]
[423750092,1780383050000,-500.0,0.00013698,2]
[423750094,1780383050000,-500.0,0.00013698,2]
[423750084,1780383050000,-500.0,0.00013698,2]
[423750078,1780383050000,-500.0,0.00013698,2]
[423750082,1780383050000,-500.0,0.00013698,2]
[423750080,1780383050000,-500.0,0.00013698,2]
[423750086,1780383050000,-500.0,0.00013698,2]
[423750111,1780383050000,-500.0,0.00013698,2]
[423750088,1780383050000,-500.0,0.00013698,2]
[423750109,1780383050000,-760.44,0.00013698,2]
[423750104,1780383050000,-500.0,0.00013698,2]
[423750098,1780383050000,-500.0,0.00013698,2]
[423750105,1780383050000,-500.0,0.00013698,2]
[423750113,1780383050000,-500.0,0.00013698,2]
[423750120,1780383050000,-500.0,0.00013698,2]
[423750102,1780383050000,-500.0,0.00013698,2]
[423750099,1780383050000,-500.0,0.00013698,2]
[423750117,1780383050000,-500.0,0.00013698,2]
[423750108,1780383050000,-504.32385879,0.00013698,2]
[423750134,1780383050000,-500.0,0.00013698,2]
[423750137,1780383050000,-500.0,0.00013698,2]
[423750135,1780383050000,-500.0,0.00013698,2]
[423750139,1780383050000,-500.0,0.00013698,2]
[423750076,1780383050000,-500.0,0.00013698,2]
[423750115,1780383050000,-500.0,0.00013698,2]
[423750074,1780383050000,-500.0,0.00013698,2]
[423750043,1780383050000,-500.0,0.00013698,2]
[423750070,1780383050000,-500.0,0.00013698,2]
[423750015,1780383050000,-500.0,0.00013698,2]
[423750017,1780383050000,-500.0,0.00013698,2]
[423750019,1780383050000,-500.0,0.00013698,2]
[423750033,1780383050000,-500.0,0.00013698,2]
[423750021,1780383050000,-500.0,0.00013698,2]
[423750037,1780383050000,-500.0,0.00013698,2]
[423750040,1780383050000,-500.0,0.00013698,2]
[423750025,1780383050000,-500.0,0.00013698,2]
[423750035,1780383050000,-500.0,0.00013698,2]
[423750023,1780383050000,-221.73963164,0.00013698,2]
[423750029,1780383050000,-500.0,0.00013698,2]
[423750031,1780383050000,-500.0,0.00013698,2]
[423750027,1780383050000,-500.0,0.00013698,2]
[423750130,1780383050000,-518.59338627,0.00013698,2]
[423750057,1780383050000,-500.0,0.00013698,2]
[423750047,1780383050000,-500.0,0.00013698,2]
[423750059,1780383050000,-500.0,0.00013698,2]
[423750063,1780383050000,-500.0,0.00013698,2]
[423750061,1780383050000,-500.0,0.00013698,2]
[423750049,1780383050000,-500.0,0.00013698,2]
[423750045,1780383050000,-500.0,0.00013698,2]
[423750051,1780383050000,-500.0,0.00013698,2]
[423750068,1780383050000,-500.0,0.00013698,2]
[423750065,1780383050000,-500.0,0.00013698,2]
[423750066,1780383050000,-500.0,0.00013698,2]
[423750053,1780383050000,-500.0,0.00013698,2]
[423750055,1780383050000,-500.0,0.00013698,2]
[423750072,1780383050000,-500.0,0.00013698,2]
[423750141,1780383050000,-500.0,0.00013698,2]
[423750122,1780383050000,-500.0,0.00013698,2]
[423750236,1780383050000,-500.0,0.00013698,2]
[423750199,1780383050000,-500.0,0.00013698,2]
[423750207,1780383050000,-500.0,0.00013698,2]
[423750205,1780383050000,-500.0,0.00013698,2]
[423750213,1780383050000,-500.0,0.00013698,2]
[423750203,1780383050000,-500.0,0.00013698,2]
[423750209,1780383050000,-500.0,0.00013698,2]
[423750211,1780383050000,-500.0,0.00013698,2]
[423750217,1780383050000,-501.89377826,0.00013698,2]
[423750220,1780383050000,-500.0,0.00013698,2]
[423750232,1780383050000,-500.0,0.00013698,2]
[423750234,1780383050000,-500.0,0.00013698,2]
[423750143,1780383050000,-500.0,0.00013698,2]
[423750238,1780383050000,-502.47123163,0.00013698,2]
[423750197,1780383050000,-500.0,0.00013698,2]
[423750224,1780383050000,-500.0,0.00013698,2]
[423750221,1780383050000,-500.0,0.00013698,2]
[423750228,1780383050000,-500.0,0.00013698,2]
[423750244,1780383050000,-502.812839,0.00013698,2]
[423750242,1780383050000,-500.0,0.00013698,2]
[423750230,1780383050000,-500.0,0.00013698,2]
[423750226,1780383050000,-500.0,0.00013698,2]
[423750246,1780383050000,-503.24,0.00013698,2]
[423750255,1780383050000,-502.41959674,0.00013698,2]
[423750248,1780383050000,-500.0,0.00013698,2]
[423750257,1780383050000,-500.0,0.00013698,2]
[423750249,1780383050000,-501.02353412,0.00013698,2]
[423750252,1780383050000,-500.0,0.00013698,2]
[423750253,1780383050000,-500.0,0.00013698,2]
[423750240,1780383050000,-500.0,0.00013698,2]
[423750195,1780383050000,-500.0,0.00013698,2]
[423750201,1780383050000,-500.0,0.00013698,2]
[423750189,1780383050000,-500.0,0.00013698,2]
[423750126,1780383050000,-1773.0,0.00013698,2]
[423750125,1780383050000,-505.20018478,0.00013698,2]
[423750147,1780383050000,-500.0,0.00013698,2]
[423750145,1780383050000,-236.09826943,0.00013698,2]
[423750128,1780383050000,-500.0,0.00013698,2]
[423750132,1780383050000,-500.0,0.00013698,2]
[423750149,1780383050000,-500.0,0.00013698,2]
[423750151,1780383050000,-500.0,0.00013698,2]
[423750152,1780383050000,-500.0,0.00013698,2]
[423750193,1780383050000,-500.0,0.00013698,2]
[423750154,1780383050000,-500.0,0.00013698,2]
[423750166,1780383050000,-507.63202701,0.00013698,2]
[423750168,1780383050000,-500.0,0.00013698,2]
[423750158,1780383050000,-500.0,0.00013698,2]
[423750156,1780383050000,-500.0,0.00013698,2]
[423750162,1780383050000,-500.0,0.00013698,2]
[423750164,1780383050000,-500.0,0.00013698,2]
[423750170,1780383050000,-500.0,0.00013698,2]
[423750172,1780383050000,-500.0,0.00013698,2]
[423750173,1780383050000,-500.0,0.00013698,2]
[423750176,1780383050000,-500.0,0.00013698,2]
[423750178,1780383050000,-500.0,0.00013698,2]
[423750187,1780383050000,-500.0,0.00013698,2]
[423750183,1780383050000,-500.0,0.00013698,2]
[423750191,1780383050000,-523.23216365,0.00013698,2]
[423750185,1780383050000,-500.0,0.00013698,2]
[423750179,1780383050000,-1521.94,0.00013698,2]
[423750181,1780383050000,-518.25125204,0.00013698,2]
[423750160,1780383050000,-500.0,0.00013698,2]
[423750317,1780383051000,-500.0,0.00013698,2]
[423750329,1780383051000,-500.0,0.00013698,2]
[423750325,1780383051000,-500.0,0.00013698,2]
[423750326,1780383051000,-500.0,0.00013698,2]
[423750322,1780383051000,-500.0,0.00013698,2]
[423750318,1780383051000,-502.16538834,0.00013698,2]
[423750320,1780383051000,-500.0,0.00013698,2]
[423750327,1780383051000,-500.0,0.00013698,2]
[423750324,1780383051000,-504.12123418,0.00013698,2]
[423750328,1780383051000,-500.0,0.00013698,2]
[423750321,1780383051000,-500.0,0.00013698,2]
[423750331,1780383051000,-500.0,0.00013698,2]
[423750323,1780383051000,-501.67725868,0.00013698,2]
[423750339,1780383051000,-283.37321979,0.00013698,2]
[423750319,1780383051000,-500.0,0.00013698,2]
[423750341,1780383051000,-522.16060319,0.00013698,2]
[423750342,1780383051000,-500.0,0.00013698,2]
[423750330,1780383051000,-3240.72,0.00013698,2]
[423750333,1780383051000,-695.58,0.00013698,2]
[423750336,1780383051000,-182.50566689,0.00013698,2]
[423750337,1780383051000,-500.0,0.00013698,2]
[423750338,1780383051000,-500.0,0.00013698,2]
[423750332,1780383051000,-500.0,0.00013698,2]
[423750335,1780383051000,-500.0,0.00013698,2]
[423750334,1780383051000,-514.94,0.00013698,2]
[423750353,1780383051000,-392.01053017,0.00013698,2]
[423750347,1780383051000,-298.68,0.00013698,2]
[423750354,1780383051000,-500.0,0.00013698,2]
[423750352,1780383051000,-500.0,0.00013698,2]
[423750340,1780383051000,-500.0,0.00013698,2]
[423750298,1780383051000,-524.15,0.00013698,2]
[423750411,1780383051000,-500.0,0.00013972,2]
[423750302,1780383051000,-500.0,0.00013698,2]
[423750351,1780383051000,-504.9552655,0.00013698,2]
[423750259,1780383051000,-530.19868505,0.00013698,2]
[423750262,1780383051000,-500.0,0.00013698,2]
[423750263,1780383051000,-846.58,0.00013698,2]
[423750266,1780383051000,-500.0,0.00013698,2]
[423750269,1780383051000,-500.0,0.00013698,2]
[423750267,1780383051000,-500.0,0.00013698,2]
[423750281,1780383051000,-500.0,0.00013698,2]
[423750283,1780383051000,-500.0,0.00013698,2]
[423750285,1780383051000,-500.0,0.00013698,2]
[423750286,1780383051000,-500.0,0.00013698,2]
[423750271,1780383051000,-312.81253414,0.00013698,2]
[423750288,1780383051000,-500.0,0.00013698,2]
[423750274,1780383051000,-500.0,0.00013698,2]
[423750300,1780383051000,-500.0,0.00013698,2]
[423750275,1780383051000,-500.0,0.00013698,2]
[423750277,1780383051000,-500.0,0.00013698,2]
[423750290,1780383051000,-500.0,0.00013698,2]
[423750292,1780383051000,-501.0509408,0.00013698,2]
[423750306,1780383051000,-500.0,0.00013698,2]
[423750304,1780383051000,-500.0,0.00013698,2]
[423750308,1780383051000,-504.16325654,0.00013698,2]
[423750309,1780383051000,-500.0,0.00013698,2]
[423750311,1780383051000,-500.0,0.00013698,2]
[423750294,1780383051000,-500.0,0.00013698,2]
[423750315,1780383051000,-500.0,0.00013698,2]
[423750313,1780383051000,-500.0,0.00013698,2]
[423750314,1780383051000,-500.0,0.00013698,2]
[423750316,1780383051000,-500.0,0.00013698,2]
[423750296,1780383051000,-500.0,0.00013698,2]
[423750279,1780383051000,-444.08001728,0.00013698,2]
[423750348,1780383051000,-151.0,0.00013698,2]
[423750453,1780383051000,-500.0,0.00013972,2]
[423750343,1780383051000,-500.0,0.00013698,2]
[423750405,1780383051000,-500.0,0.00013972,2]
[423750414,1780383051000,-500.0,0.00013972,2]
[423750416,1780383051000,-505.84919047,0.00013972,2]
[423750419,1780383051000,-502.87210418,0.00013972,2]
[423750409,1780383051000,-500.0,0.00013972,2]
[423750407,1780383051000,-521.8127926,0.00013972,2]
[423750421,1780383051000,-500.0,0.00013972,2]
[423750417,1780383051000,-500.0,0.00013972,2]
[423750412,1780383051000,-500.0,0.00013972,2]
[423750426,1780383051000,-500.0,0.00013972,2]
[423750424,1780383051000,-500.0,0.00013972,2]
[423750422,1780383051000,-500.0,0.00013972,2]
[423750427,1780383051000,-500.0,0.00013972,2]
[423750355,1780383051000,-500.0,0.00013698,2]
[423750431,1780383051000,-500.0,0.00013972,2]
[423750444,1780383051000,-500.0,0.00013972,2]
[423750442,1780383051000,-500.0,0.00013972,2]
[423750440,1780383051000,-500.0,0.00013972,2]
[423750439,1780383051000,-500.0,0.00013972,2]
[423750433,1780383051000,-500.0,0.00013972,2]
[423750430,1780383051000,-500.0,0.00013972,2]
[423750437,1780383051000,-500.0,0.00013972,2]
[423750435,1780383051000,-500.0,0.00013972,2]
[423750448,1780383051000,-500.0,0.00013972,2]
[423750449,1780383051000,-502.98489721,0.00013972,2]
[423750451,1780383051000,-500.0,0.00013972,2]
[423750455,1780383051000,-500.0,0.00013972,2]
[423750457,1780383051000,-500.0,0.00013972,2]
[423750458,1780383051000,-500.0,0.00013972,2]
[423750404,1780383051000,-500.0,0.00013972,2]
[423750402,1780383051000,-500.0,0.00013972,2]
[423750446,1780383051000,-500.0,0.00013972,2]
[423750383,1780383051000,-500.0,0.00013972,2]
[423750381,1780383051000,-500.0,0.00013972,2]
[423750345,1780383051000,-500.0,0.00013698,2]
[423750346,1780383051000,-500.0,0.00013698,2]
[423750350,1780383051000,-500.0,0.00013698,2]
[423750349,1780383051000,-500.0,0.00013698,2]
[423750357,1780383051000,-640.86,0.00013698,2]
[423750371,1780383051000,-671.559538,0.00013816,2]
[423750369,1780383051000,-214.8059082,0.00013816,2]
[423750360,1780383051000,-500.0,0.00013698,2]
[423750361,1780383051000,-500.0,0.00013698,2]
[423750373,1780383051000,-27109.8487453,0.00013816,2]
[423750375,1780383051000,-191.94,0.0001388,2]
[423750356,1780383051000,-500.0,0.00013698,2]
[423750358,1780383051000,-500.0,0.00013698,2]
[423750344,1780383051000,-732.79,0.00013698,2]
[423750363,1780383051000,-500.0,0.00013698,2]
[423750367,1780383051000,-500.0,0.00013698,2]
[423750387,1780383051000,-500.0,0.00013972,2]
[423750388,1780383051000,-500.0,0.00013972,2]
[423750385,1780383051000,-500.0,0.00013972,2]
[423750398,1780383051000,-500.0,0.00013972,2]
[423750396,1780383051000,-500.0,0.00013972,2]
[423750400,1780383051000,-500.0,0.00013972,2]
[423750393,1780383051000,-500.0,0.00013972,2]
[423750389,1780383051000,-500.0,0.00013972,2]
[423750391,1780383051000,-500.0,0.00013972,2]
[423750379,1780383051000,-500.0,0.00013972,2]
[423750377,1780383051000,-1000.0,0.00013972,2]
[423750365,1780383051000,-626.18,0.00013698,2]
[423750394,1780383051000,-500.0,0.00013972,2]
[423750521,1780383052000,-500.0,0.00013972,2]
[423750528,1780383052000,-500.0,0.00013972,2]
[423750520,1780383052000,-500.0,0.00013972,2]
[423750529,1780383052000,-500.0,0.00013972,2]
[423750519,1780383052000,-500.0,0.00013972,2]
[423750525,1780383052000,-500.0,0.00013972,2]
[423750524,1780383052000,-500.0,0.00013972,2]
[423750527,1780383052000,-500.0,0.00013972,2]
[423750526,1780383052000,-500.0,0.00013972,2]
[423750518,1780383052000,-1521.94,0.00013972,2]
[423750523,1780383052000,-500.0,0.00013972,2]
[423750514,1780383052000,-527.74,0.00013972,2]
[423750517,1780383052000,-500.0,0.00013972,2]
[423750522,1780383052000,-500.0,0.00013972,2]
[423750540,1780383052000,-500.0,0.00013972,2]
[423750532,1780383052000,-163.05,0.00013972,2]
[423750542,1780383052000,-500.0,0.00013972,2]
[423750543,1780383052000,-503.24,0.00013972,2]
[423750545,1780383052000,-502.30173365,0.00013972,2]
[423750544,1780383052000,-500.0,0.00013972,2]
[423750536,1780383052000,-500.0,0.00013972,2]
[423750533,1780383052000,-500.0,0.00013972,2]
[423750537,1780383052000,-500.0,0.00013972,2]
[423750534,1780383052000,-500.0,0.00013972,2]
[423750535,1780383052000,-500.0,0.00013972,2]
[423750531,1780383052000,-500.0,0.00013972,2]
[423750539,1780383052000,-500.0,0.00013972,2]
[423750541,1780383052000,-310.76149428,0.00013972,2]
[423750512,1780383052000,-500.0,0.00013972,2]
[423750530,1780383052000,-501.53396121,0.00013972,2]
[423750516,1780383052000,-500.0,0.00013972,2]
[423750538,1780383052000,-500.0,0.00013972,2]
[423750510,1780383052000,-500.0,0.00013972,2]
[423750460,1780383052000,-500.0,0.00013972,2]
[423750462,1780383052000,-500.0,0.00013972,2]
[423750466,1780383052000,-760.44,0.00013972,2]
[423750468,1780383052000,-500.0,0.00013972,2]
[423750470,1780383052000,-500.0,0.00013972,2]
[423750472,1780383052000,-500.0,0.00013972,2]
[423750480,1780383052000,-500.0,0.00013972,2]
[423750482,1780383052000,-1773.0,0.00013972,2]
[423750476,1780383052000,-500.0,0.00013972,2]
[423750474,1780383052000,-541.06551325,0.00013972,2]
[423750478,1780383052000,-304.40398831,0.00013972,2]
[423750489,1780383052000,-593.29217935,0.00013972,2]
[423750488,1780383052000,-500.0,0.00013972,2]
[423750484,1780383052000,-181.92,0.00013972,2]
[423750486,1780383052000,-516.15386485,0.00013972,2]
[423750495,1780383052000,-501.70166642,0.00013972,2]
[423750493,1780383052000,-506.21176593,0.00013972,2]
[423750491,1780383052000,-500.0,0.00013972,2]
[423750497,1780383052000,-500.0,0.00013972,2]
[423750499,1780383052000,-500.0,0.00013972,2]
[423750501,1780383052000,-500.0,0.00013972,2]
[423750505,1780383052000,-500.0,0.00013972,2]
[423750511,1780383052000,-500.0,0.00013972,2]
[423750502,1780383052000,-500.0,0.00013972,2]
[423750506,1780383052000,-500.0,0.00013972,2]
[423750509,1780383052000,-603.75071813,0.00013972,2]
[423750508,1780383052000,-500.0,0.00013972,2]
[423750504,1780383052000,-503.22230869,0.00013972,2]
[423750507,1780383052000,-500.0,0.00013972,2]
[423750513,1780383052000,-500.0,0.00013972,2]
[423750547,1780383052000,-500.0,0.00013972,2]
[423750571,1780383052000,-482.2973656,0.00013972,2]
[423750552,1780383052000,-500.0,0.00013972,2]
[423750584,1780383052000,-1000.0,0.00013972,2]
[423750594,1780383052000,-500.0,0.00013972,2]
[423750595,1780383052000,-500.0,0.00013972,2]
[423750596,1780383052000,-732.79,0.00013972,2]
[423750583,1780383052000,-1000.0,0.00013972,2]
[423750589,1780383052000,-695.58,0.00013972,2]
[423750586,1780383052000,-3240.72,0.00013972,2]
[423750587,1780383052000,-500.0,0.00013972,2]
[423750585,1780383052000,-1023.1828902,0.00013972,2]
[423750588,1780383052000,-500.0,0.00013972,2]
[423750590,1780383052000,-514.94,0.00013972,2]
[423750591,1780383052000,-163.4790524,0.00013972,2]
[423750593,1780383052000,-604.98,0.00013972,2]
[423750598,1780383052000,-500.0,0.00013972,2]
[423750601,1780383052000,-500.0,0.00013972,2]
[423750600,1780383052000,-151.0,0.00013972,2]
[423750608,1780383052000,-500.0,0.00013972,2]
[423750609,1780383052000,-500.0,0.00013972,2]
[423750597,1780383052000,-500.0,0.00013972,2]
[423750599,1780383052000,-151.0,0.00013972,2]
[423750604,1780383052000,-158.6412051,0.00013972,2]
[423750602,1780383052000,-504.38465574,0.00013972,2]
[423750606,1780383052000,-500.0,0.00013972,2]
[423750603,1780383052000,-151.0,0.00013972,2]
[423750605,1780383052000,-500.0,0.00013972,2]
[423750607,1780383052000,-500.0,0.00013972,2]
[423750611,1780383052000,-500.0,0.00013972,2]
[423750610,1780383052000,-500.0,0.00013972,2]
[423750550,1780383052000,-550.57517689,0.00013972,2]
[423750577,1780383052000,-500.0,0.00013972,2]
[423750578,1780383052000,-500.0,0.00013972,2]
[423750592,1780383052000,-500.0,0.00013972,2]
[423750579,1780383052000,-500.0,0.00013972,2]
[423750573,1780383052000,-500.0,0.00013972,2]
[423750559,1780383052000,-500.0,0.00013972,2]
[423750557,1780383052000,-500.0,0.00013972,2]
[423750556,1780383052000,-500.0,0.00013972,2]
[423750551,1780383052000,-500.0,0.00013972,2]
[423750546,1780383052000,-303.63597502,0.00013972,2]
[423750553,1780383052000,-500.0,0.00013972,2]
[423750555,1780383052000,-500.0,0.00013972,2]
[423750558,1780383052000,-500.0,0.00013972,2]
[423750549,1780383052000,-846.58,0.00013972,2]
[423750554,1780383052000,-500.0,0.00013972,2]
[423750561,1780383052000,-500.0,0.00013972,2]
[423750560,1780383052000,-500.0,0.00013972,2]
[423750562,1780383052000,-524.15,0.00013972,2]
[423750563,1780383052000,-504.34901313,0.00013972,2]
[423750548,1780383052000,-500.0,0.00013972,2]
[423750580,1780383052000,-500.0,0.00013972,2]
[423750564,1780383052000,-500.0,0.00013972,2]
[423750576,1780383052000,-232.60201665,0.00013972,2]
[423750582,1780383052000,-1000.0,0.00013972,2]
[423750581,1780383052000,-1000.0,0.00013972,2]
[423750575,1780383052000,-500.0,0.00013972,2]
[423750572,1780383052000,-500.0,0.00013972,2]
[423750574,1780383052000,-500.0,0.00013972,2]
[423750612,1780383052000,-1000.0,0.00014246,2]
[423750569,1780383052000,-500.0,0.00013972,2]
[423750565,1780383052000,-500.0,0.00013972,2]
[423750567,1780383052000,-500.0,0.00013972,2]
[423750566,1780383052000,-500.0,0.00013972,2]
[423750568,1780383052000,-500.0,0.00013972,2]
[423750570,1780383052000,-501.1750264,0.00013972,2]
[423750653,1780383053000,-500.0,0.00014246,2]
[423750659,1780383053000,-501.39003269,0.00014246,2]
[423750657,1780383053000,-760.44,0.00014246,2]
[423750652,1780383053000,-531.39207651,0.00014246,2]
[423750663,1780383053000,-1773.0,0.00014246,2]
[423750662,1780383053000,-502.69273503,0.00014246,2]
[423750641,1780383053000,-500.0,0.00014246,2]
[423750651,1780383053000,-500.0,0.00014246,2]
[423750645,1780383053000,-500.0,0.00014246,2]
[423750646,1780383053000,-500.0,0.00014246,2]
[423750643,1780383053000,-616.7999715,0.00014246,2]
[423750644,1780383053000,-500.0,0.00014246,2]
[423750664,1780383053000,-500.0,0.00014246,2]
[423750654,1780383053000,-500.0,0.00014246,2]
[423750656,1780383053000,-160.86745194,0.00014246,2]
[423750672,1780383053000,-637.80576564,0.00014246,2]
[423750658,1780383053000,-500.0,0.00014246,2]
[423750661,1780383053000,-509.18497167,0.00014246,2]
[423750660,1780383053000,-500.0,0.00014246,2]
[423750666,1780383053000,-500.0,0.00014246,2]
[423750665,1780383053000,-500.0,0.00014246,2]
[423750667,1780383053000,-500.0,0.00014246,2]
[423750668,1780383053000,-500.0,0.00014246,2]
[423750669,1780383053000,-500.0,0.00014246,2]
[423750677,1780383053000,-503.02400448,0.00014246,2]
[423750670,1780383053000,-500.0,0.00014246,2]
[423750676,1780383053000,-502.33354656,0.00014246,2]
[423750673,1780383053000,-225.64,0.00014246,2]
[423750675,1780383053000,-500.0,0.00014246,2]
[423750674,1780383053000,-500.0,0.00014246,2]
[423750655,1780383053000,-568.57163193,0.00014246,2]
[423750640,1780383053000,-502.25226965,0.00014246,2]
[423750622,1780383053000,-500.0,0.00014246,2]
[423750638,1780383053000,-497.08351001,0.00014246,2]
[423750671,1780383053000,-306.6,0.00014246,2]
[423750621,1780383053000,-500.0,0.00014246,2]
[423750623,1780383053000,-500.0,0.00014246,2]
[423750617,1780383053000,-277.4772778,0.00014246,2]
[423750613,1780383053000,-500.0,0.00014246,2]
[423750619,1780383053000,-500.0,0.00014246,2]
[423750620,1780383053000,-500.0,0.00014246,2]
[423750618,1780383053000,-503.62606026,0.00014246,2]
[423750614,1780383053000,-500.0,0.00014246,2]
[423750616,1780383053000,-500.0,0.00014246,2]
[423750615,1780383053000,-500.0,0.00014246,2]
[423750624,1780383053000,-500.0,0.00014246,2]
[423750628,1780383053000,-500.0,0.00014246,2]
[423750626,1780383053000,-503.66473125,0.00014246,2]
[423750642,1780383053000,-500.0,0.00014246,2]
[423750627,1780383053000,-500.0,0.00014246,2]
[423750633,1780383053000,-500.0,0.00014246,2]
[423750629,1780383053000,-500.0,0.00014246,2]
[423750632,1780383053000,-500.0,0.00014246,2]
[423750634,1780383053000,-586.86339968,0.00014246,2]
[423750631,1780383053000,-649.76901258,0.00014246,2]
[423750630,1780383053000,-502.70300397,0.00014246,2]
[423750636,1780383053000,-502.78332557,0.00014246,2]
[423750637,1780383053000,-500.0,0.00014246,2]
[423750635,1780383053000,-503.68767566,0.00014246,2]
[423750647,1780383053000,-500.0,0.00014246,2]
[423750639,1780383053000,-158.48258476,0.00014246,2]